bitfinex/quotes_SOLUSD_20251013
["timestamp","ask_amount","ask_price","bid_price","bid_amount"]
[1760314496338,0.72,197.69,197.65,19.99999999]
[1760314496545,0.72,197.68,197.65,19.99999999]
[1760314496724,0.72,197.67,197.63,10.87647521]
[1760314497032,20.8,197.62,197.6,19.99999999]
[1760314497234,20.8,197.62,197.56,19.99999999]
[1760314497235,0.72,197.61,197.56,19.99999999]
[1760314497440,0.72,197.6,197.55,10.87647521]
[1760314497625,0.72,197.59,197.55,10.87647521]
[1760314497824,0.72,197.58,197.56,19.99999999]
[1760314498118,20.8,197.62,197.59,10.87647521]
[1760314498330,20.8,197.62,197.61,19.99999999]
[1760314498724,0.72,197.66,197.63,30.8764752]
[1760314498934,0.72,197.7,197.66,19.99999999]
[1760314499147,0.72,197.7,197.68,19.99999999]
[1760314499322,0.72,197.69,197.63,10.87647521]
[1760314499525,0.72,197.69,197.65,19.99999999]
[1760314499731,0.72,197.68,197.65,10.87647521]
[1760314499931,0.72,197.67,197.64,19.99999999]
[1760314500131,0.72,197.66,197.61,30.8764752]
[1760314500427,58.20030454,197.77,197.68,19.99999999]
[1760314500428,0.72,197.71,197.68,19.99999999]
[1760314500641,0.72,197.7,197.66,10.87647521]
[1760314500840,0.72,197.74,197.67,19.99999999]
[1760314501048,0.72,197.74,197.69,19.99999999]
[1760314501049,5.0574015,197.73,197.69,19.99999999]
[1760314501354,0.72,197.72,197.7,19.99999999]
[1760314501535,20.8,197.7,197.67,19.99999999]
[1760314501848,0.72,197.69,197.66,19.99999999]
[1760314502150,0.72,197.71,197.66,19.99999999]
[1760314502330,5.0574015,197.73,197.68,19.99999999]
[1760314502639,5.7774015,197.73,197.7,19.99999999]
[1760314502847,0.72,197.72,197.69,19.99999999]
[1760314503028,0.72,197.71,197.68,19.99999999]
[1760314503234,0.72,197.71,197.67,19.99999999]
[1760314503423,20.8,197.75,197.67,19.99999999]
[1760314503619,0.72,197.7,197.67,19.99999999]
[1760314503822,20.8,197.75,197.68,10.87647521]
[1760314504041,0.72,197.74,197.71,19.99999999]
[1760314504240,0.1,197.79,197.72,10.87647521]
[1760314504449,0.1,197.79,197.78,30.8764752]
[1760314505149,15.20873995,197.94,197.85,19.99999999]
[1760314505347,15.20873995,197.94,197.79,10.87647521]
[1760314505348,0.72,197.95,197.91,19.99999999]
[1760314505524,0.72,197.94,197.89,19.99999999]
[1760314505721,21.52,197.93,197.87,19.99999999]
[1760314506445,0.72,197.93,197.88,10.87647521]
[1760314506651,5.77165182,197.96,197.92,19.99999999]
[1760314506830,0.72,197.95,197.91,19.99999999]
[1760314507145,5.1511267,197.98,197.95,19.99999999]
[1760314507330,0.72,197.97,197.93,19.99999999]
[1760314507524,0.82,197.98,197.95,19.99999999]
[1760314507728,0.1,197.98,197.96,19.99999999]
[1760314508127,0.1,197.98,197.97,30.8764752]
[1760314508852,20.9,197.98,197.97,30.8764752]
[1760314509060,0.82,197.98,197.96,19.99999999]
[1760314509231,0.72,197.97,197.75,12.64180721]
[1760314509435,0.72,197.96,197.85,10.87647521]
[1760314509655,0.72,197.96,197.87,10.87647521]
[1760314510354,21.52,197.95,197.8,10.87647521]
[1760314510534,0.72,197.94,197.8,10.87647521]
[1760314510736,0.72,197.93,197.82,10.87647521]
[1760314510941,0.72,197.93,197.84,10.87647521]
[1760314511129,17.68391268,197.92,197.84,10.87647521]
[1760314511335,20.8,197.89,197.81,10.87647521]
[1760314511636,20.8,197.89,197.81,11.53647521]
[1760314512154,25.35507627,197.98,197.83,10.87647521]
[1760314512155,0.72,197.96,197.83,10.87647521]
[1760314512363,0.1,197.98,197.85,10.87647521]
[1760314512535,0.1,197.98,197.87,10.87647521]
[1760314512934,0.1,197.98,197.89,10.87647521]
[1760314513157,0.1,197.98,197.9,17.68569983]
[1760314513345,0.1,197.98,197.91,10.87647521]
[1760314513546,0.1,197.98,197.91,11.53647521]
[1760314513736,0.1,197.98,197.93,10.87647521]
[1760314514253,0.1,197.98,197.95,10.87647521]
[1760314514665,0.1,197.98,197.97,10.87647521]
[1760314515044,0.1,197.98,197.97,0.66]
[1760314515245,0.1,197.98,197.97,5.71127039]
[1760314515554,0.1,197.98,197.95,5.05157091]
[1760314515864,0.1,197.98,197.96,10.87647521]
[1760314516032,0.1,197.98,197.96,11.53647521]
[1760314516352,0.1,197.98,197.97,0.66]
[1760314516950,0.72,198.13,197.97,1.16512703]
[1760314517166,5.76644953,198.16,197.99,10.87647521]
[1760314517336,5.76644953,198.16,198.01,10.87647521]
[1760314517639,20.8,198.13,198.03,10.87647521]
[1760314517842,20.8,198.13,198.05,10.87647521]
[1760314518247,20.8,198.13,198.0,17.67676767]
[1760314518248,5.04613208,198.18,198.07,10.87647521]
[1760314518560,0.72,198.17,198.02,10.87647521]
[1760314518775,0.72,198.21,198.09,10.87647521]
[1760314519060,13.48647521,198.3,198.0,17.67676767]
[1760314519061,0.1,198.18,198.11,10.87647521]
[1760314519249,2.61,198.3,198.15,10.87647521]
[1760314519568,2.61,198.3,198.17,10.87647521]
[1760314519775,20.8,198.29,198.18,0.63]
[1760314519982,2.61,198.3,198.15,10.87647521]
[1760314519983,20.8,198.27,198.15,10.87647521]
[1760314520140,0.72,198.26,198.15,10.87647521]
[1760314520631,20.8,198.27,198.14,10.87647521]
[1760314520836,0.72,198.26,198.14,10.87647521]
[1760314521062,0.72,198.25,198.1,10.87647521]
[1760314521270,20.8,198.2,198.1,10.87647521]
[1760314521438,0.72,198.19,198.08,10.87647521]
[1760314521633,0.72,198.19,198.0,19.99999999]
[1760314521634,0.72,198.18,198.03,0.63]
[1760314521971,20.8,198.2,198.03,0.63]
[1760314522263,20.8,198.2,198.04,31.67647521]
[1760314522456,20.8,198.2,198.06,10.87647521]
[1760314522637,0.72,198.19,198.0,12.62611558]
[1760314522846,0.72,198.18,198.04,10.87647521]
[1760314523142,0.72,198.18,198.03,0.63]
[1760314523143,20.8,198.2,198.06,10.87647521]
[1760314523342,0.72,198.21,198.08,10.87647521]
[1760314523537,0.72,198.24,198.08,10.87647521]
[1760314523733,0.72,198.24,198.1,10.87647521]
[1760314524157,0.72,198.24,198.12,10.87647521]
[1760314524357,0.72,198.24,198.14,10.87647521]
[1760314525099,0.72,198.28,198.16,10.87647521]
[1760314525363,2.61,198.3,198.16,10.87647521]
[1760314525364,5.04388177,198.26,198.16,10.87647521]
[1760314525558,25.84388177,198.26,198.16,15.92278853]
[1760314525764,5.04388177,198.26,198.16,15.92278853]
[1760314526065,0.72,198.25,198.11,0.63]
[1760314526249,0.72,198.25,198.12,15.92377099]
[1760314526468,0.72,198.24,198.11,10.87647521]
[1760314526676,0.72,198.23,198.11,11.50647521]
[1760314526978,0.72,198.27,198.12,0.63]
[1760314527174,5.76372162,198.27,198.12,0.63]
[1760314527389,5.76372162,198.27,198.14,10.87647521]
[1760314527390,20.8,198.24,198.14,10.87647521]
[1760314527593,20.8,198.24,198.16,10.87647521]
[1760314527884,7.65297472,198.3,198.18,10.87647521]
[1760314528086,28.45294163,198.3,198.2,10.87647521]
[1760314528451,0.72,198.29,198.2,10.87647521]
[1760314528652,2.61,198.3,198.21,0.63]
[1760314528863,2.61,198.3,198.22,10.87647521]
[1760314529085,2.61,198.3,198.24,10.87647521]
[1760314529387,2.61,198.3,198.28,10.87647521]
[1760314529562,2.61,198.3,198.29,11.50647521]
[1760314530068,2.61,198.3,198.29,10.87647521]
[1760314530264,2.61,198.3,198.25,5.67400069]
[1760314530463,2.61,198.3,198.22,10.87647521]
[1760314531059,2.61,198.3,198.24,10.87647521]
[1760314531265,2.61,198.3,198.28,10.87647521]
[1760314531474,2.61,198.3,198.28,11.50647521]
[1760314531668,2.61,198.3,198.28,10.87647521]
[1760314533167,0.72,198.29,198.19,10.87647521]
[1760314533377,2.61,198.3,198.21,10.87647521]
[1760314533980,0.72,198.29,198.17,11.50647521]
[1760314534173,20.8,198.27,198.12,12.61838566]
[1760314534389,0.72,198.26,198.07,0.63]
[1760314535096,0.72,198.26,198.07,21.43]
[1760314535290,0.72,198.26,198.11,10.87647521]
[1760314535291,20.8,198.21,198.11,10.87647521]
[1760314535582,20.8,198.21,198.11,11.50647521]
[1760314535762,20.8,198.23,198.13,10.87647521]
[1760314536169,20.8,198.23,198.15,10.87647521]
[1760314536367,2.61,198.3,198.17,10.87647521]
[1760314536576,2.61,198.3,198.19,31.67647521]
[1760314536788,2.61,198.3,198.21,10.87647521]
[1760314536990,2.61,198.3,198.23,10.87647521]
[1760314537291,2.61,198.3,198.25,10.87647521]
[1760314537461,2.61,198.3,198.27,10.87647521]
[1760314537666,2.61,198.3,198.29,10.87647521]
[1760314538076,2.61,198.3,198.27,10.87647521]
[1760314538370,2.61,198.3,198.27,11.51647521]
[1760314538680,2.61,198.3,198.27,10.87647521]
[1760314539463,2.61,198.3,198.27,15.92002645]
[1760314539661,1.97,198.3,198.29,10.87647521]
[1760314540100,1.97,198.3,198.28,10.87647521]
[1760314540385,4.91917007,198.39,198.29,0.50431186]
[1760314540768,4.91917007,198.39,198.28,10.87647521]
[1760314541190,4.91917007,198.39,198.32,10.87647521]
[1760314541374,4.91917007,198.39,198.32,15.91867234]
[1760314541375,0.72,198.38,198.32,15.91867234]
[1760314541577,0.72,198.37,198.32,15.91867234]
[1760314541771,0.72,198.36,198.3,15.91920817]
[1760314541980,0.72,198.35,198.16,19.99999999]
[1760314542279,43.3612121,198.39,197.98,0.2]
[1760314542280,0.72,198.34,198.17,21.48]
[1760314542481,0.72,198.33,198.19,19.99999999]
[1760314542680,0.72,198.32,198.13,0.68]
[1760314543190,19.99999999,198.26,197.99,5.05076013]
[1760314543372,17.65536722,198.24,198.01,5.05024998]
[1760314543568,11.59647521,198.23,197.96,0.68]
[1760314543786,20.8,198.2,197.99,5.05069567]
[1760314544089,21.48,198.19,197.92,0.68]
[1760314544304,21.48,198.19,197.98,5.25090557]
[1760314544486,0.68,198.18,198.01,20.8]
[1760314544686,0.68,198.18,198.06,10.87647521]
[1760314544883,0.68,198.18,198.08,10.87647521]
[1760314545295,0.68,198.17,198.06,10.87647521]
[1760314545503,20.8,198.24,198.08,10.87647521]
[1760314545504,0.68,198.16,198.08,10.87647521]
[1760314545717,0.68,198.15,198.06,5.04886361]
[1760314545888,0.68,198.14,198.07,10.87647521]
[1760314546197,0.68,198.13,198.07,10.87647521]
[1760314546702,0.68,198.17,198.07,10.87647521]
[1760314547597,0.68,198.17,198.09,10.87647521]
[1760314547901,20.8,198.27,198.09,10.87647521]
[1760314548088,0.68,198.16,198.09,10.87647521]
[1760314548483,0.68,198.15,198.07,10.87647521]
[1760314548708,0.68,198.14,198.07,10.87647521]
[1760314548871,0.68,198.13,198.07,10.87647521]
[1760314549285,0.68,198.12,198.07,10.87647521]
[1760314549577,21.48,198.11,198.06,5.04877436]
[1760314549788,0.68,198.1,198.06,5.04877436]
[1760314549988,0.68,198.09,198.06,5.04877436]
[1760314550189,12.6153343,198.18,198.06,5.04877436]
[1760314550190,0.68,198.08,198.06,5.04877436]
[1760314550393,0.68,198.07,198.04,5.0493517]
[1760314550592,0.68,198.06,198.01,10.87647521]
[1760314550780,0.68,198.05,198.01,10.87647521]
[1760314550980,0.68,198.09,198.01,10.87647521]
[1760314551302,20.8,198.12,198.02,0.68]
[1760314551509,0.68,198.15,198.02,0.68]
[1760314551674,0.68,198.15,198.04,10.87647521]
[1760314552377,0.68,198.18,198.06,10.87647521]
[1760314552803,20.8,198.21,198.06,10.87647521]
[1760314552998,0.68,198.17,198.04,10.87647521]
[1760314553206,0.68,198.16,198.04,10.87647521]
[1760314553516,0.68,198.15,198.01,5.05006747]
[1760314553687,4.90334612,198.02,197.99,17.67731485]
[1760314554004,4.90334612,198.02,197.85,19.99999999]
[1760314554005,4.90334612,198.0,197.95,5.05171237]
[1760314554187,4.90334612,197.99,197.9,0.68]
[1760314554388,4.90334612,197.99,197.91,10.87647521]
[1760314554902,0.71,198.05,197.99,10.87647521]
[1760314555297,4.90334612,198.0,197.99,10.87647521]
[1760314555912,12.6189723,198.12,198.0,10.87647521]
[1760314556081,20.8,198.08,198.0,10.87647521]
[1760314556277,0.71,198.11,198.0,10.87647521]
[1760314556485,4.90334612,198.05,197.99,22.58096598]
[1760314556701,4.90334612,198.02,197.99,17.67761986]
[1760314556909,4.90334612,198.0,197.98,0.2]
[1760314557116,4.90334612,197.99,197.98,0.2]
[1760314557403,20.8,198.13,197.98,5.25088501]
[1760314557579,0.71,198.02,197.99,10.87647521]
[1760314557780,4.903855,198.0,197.99,10.87647521]
[1760314557984,4.903855,198.0,197.99,5.05060603]
[1760314558218,7.30412882,198.0,197.99,5.05060603]
[1760314558514,8.01412882,198.0,197.98,0.2]
[1760314558690,8.01412882,197.99,197.98,0.2]
[1760314558892,0.71,197.99,197.98,0.2]
[1760314559209,8.01412882,197.99,197.98,0.2]
[1760314559785,0.71,198.03,197.99,5.05076013]
[1760314559990,7.30412882,198.0,197.99,15.92723534]
[1760314560184,0.71,198.03,197.99,15.92723534]
[1760314560395,19.99999999,198.21,198.0,11.55647521]
[1760314560584,18.36893036,198.2,198.0,10.87647521]
[1760314560787,0.71,198.19,198.05,7.30412882]
[1760314560993,0.71,198.19,198.12,18.18060403]
[1760314560994,7.30412882,198.19,198.12,18.18060403]
[1760314561199,7.30412882,198.21,198.14,18.18060403]
[1760314561612,0.71,198.27,198.14,18.18060403]
[1760314561613,7.30412882,198.23,198.16,7.30412882]
[1760314561791,7.30412882,198.22,198.18,10.87647521]
[1760314561997,7.30412882,198.24,198.2,10.87647521]
[1760314562322,7.30412882,198.22,198.18,10.87647521]
[1760314562511,21.51,198.26,198.18,10.87647521]
[1760314562707,7.30412882,198.19,198.07,0.68]
[1760314562906,19.99999999,198.34,198.1,10.87647521]
[1760314563119,7.30412882,198.15,198.1,10.87647521]
[1760314563317,20.8,198.22,198.1,0.68]
[1760314563612,20.8,198.22,198.08,10.87647521]
[1760314563613,7.30412882,198.15,198.08,18.86060403]
[1760314563811,7.30412882,198.11,198.05,15.9257052]
[1760314563984,7.30412882,198.14,198.07,18.18060403]
[1760314564190,7.30412882,198.11,198.07,10.87647521]
[1760314564406,0.71,198.24,198.1,7.30412882]
[1760314564710,7.30412882,198.18,198.11,18.86060403]
[1760314565302,7.30412882,198.17,198.11,11.55647521]
[1760314565609,7.30412882,198.2,198.15,10.87647521]
[1760314565809,7.30412882,198.23,198.17,10.87647521]
[1760314566026,7.30412882,198.26,198.19,7.30412882]
[1760314566199,0.71,198.33,198.22,10.87647521]
[1760314566401,0.71,198.33,198.22,7.30412882]
[1760314566699,20.8,198.32,198.21,10.87647521]
[1760314566902,20.8,198.3,198.15,18.18060403]
[1760314567205,7.30412882,198.17,198.15,10.87647521]
[1760314567405,7.30412882,198.17,198.14,10.87647521]
[1760314567716,7.30412882,198.2,198.18,10.87647521]
[1760314568015,7.30412882,198.19,198.18,214.5]
[1760314568204,7.30412882,198.21,198.17,10.87647521]
[1760314568400,4.91917007,198.39,198.19,7.30412882]
[1760314568717,4.91917007,198.39,198.14,98.06426696]
[1760314568718,7.30412882,198.38,198.3,10.87647521]
[1760314569015,4.91917007,198.39,198.34,10.87647521]
[1760314569526,7.30412882,198.37,198.29,12.6075668]
[1760314569829,7.30412882,198.35,198.3,10.87647521]
[1760314570008,7.30412882,198.31,198.23,7.30412882]
[1760314570325,4.91917007,198.39,198.26,7.30412882]
[1760314570488,4.91917007,198.39,198.33,10.87647521]
[1760314570489,12.22329889,198.39,198.33,10.87647521]
[1760314570688,7.30412882,198.38,198.33,10.87647521]
[1760314570921,7.30412882,198.36,198.31,10.87647521]
[1760314571128,4.91917007,198.39,198.33,10.87647521]
[1760314571298,4.91917007,198.39,198.35,10.87647521]
[1760314571611,4.91917007,198.39,198.37,10.87647521]
[1760314571912,7.30412882,198.38,198.28,10.87647521]
[1760314572101,7.30412882,198.31,198.3,10.87647521]
[1760314572298,7.30412882,198.31,198.22,38.45714861]
[1760314572299,7.30412882,198.31,198.24,10.87647521]
[1760314572503,4.91917007,198.39,198.3,10.87647521]
[1760314572705,10.66978875,198.39,198.28,31.67647521]
[1760314572899,7.30412882,198.29,198.22,17.65714861]
[1760314573102,7.30412882,198.28,198.23,10.87647521]
[1760314573326,7.30412882,198.24,198.23,10.87647521]
[1760314573629,7.30412882,198.24,198.18,7.30412882]
[1760314573630,7.30412882,198.26,198.2,12.61305207]
[1760314573813,0.71,198.37,198.26,10.87647521]
[1760314574121,7.30412882,198.31,198.26,10.87647521]
[1760314574424,7.30412882,198.32,198.26,11.55647521]
[1760314574727,7.30412882,198.34,198.3,10.87647521]
[1760314575019,7.30412882,198.34,198.27,18.18060403]
[1760314575321,7.30412882,198.33,198.27,10.87647521]
[1760314575529,7.30412882,198.33,198.25,20.8]
[1760314575530,7.30412882,198.35,198.31,10.87647521]
[1760314575707,4.91917007,198.39,198.31,10.87647521]
[1760314575898,4.91917007,198.39,198.36,10.87647521]
[1760314576092,4.91917007,198.39,198.34,7.30412882]
[1760314576314,4.91917007,198.39,198.34,10.87647521]
[1760314576518,7.30412882,198.38,198.34,10.87647521]
[1760314576717,7.30412882,198.38,198.33,10.87647521]
[1760314576906,4.91917007,198.39,198.33,10.87647521]
[1760314576907,7.30412882,198.36,198.33,10.87647521]
[1760314577110,7.30412882,198.34,198.31,10.87647521]
[1760314577308,5.62917007,198.39,198.31,10.87647521]
[1760314577629,0.71,198.38,198.33,10.87647521]
[1760314577796,7.30412882,198.38,198.33,10.87647521]
[1760314578209,4.91917007,198.39,198.35,10.87647521]
[1760314578403,4.91917007,198.39,198.33,10.87647521]
[1760314578404,12.22329889,198.39,198.33,10.87647521]
[1760314578811,4.91917007,198.39,198.35,10.87647521]
[1760314579008,4.91917007,198.39,198.36,10.87647521]
[1760314579206,4.91917007,198.39,198.38,10.87647521]
[1760314579920,7.30412882,198.44,198.38,18.86060403]
[1760314580119,7.30412882,198.45,198.38,18.86060403]
[1760314580304,7.30412882,198.44,198.39,10.87647521]
[1760314580720,0.1,198.5,198.38,10.87647521]
[1760314580721,7.30412882,198.42,198.38,10.87647521]
[1760314581129,0.71,198.49,198.39,0.68]
[1760314581318,7.30412882,198.45,198.39,0.68]
[1760314581623,7.30412882,198.46,198.41,10.87647521]
[1760314581826,7.30412882,198.43,198.41,10.87647521]
[1760314582004,7.30412882,198.45,198.41,10.87647521]
[1760314582201,0.71,198.49,198.41,10.87647521]
[1760314582414,7.30412882,198.45,198.41,10.87647521]
[1760314583126,7.30412882,198.42,198.39,5.04038223]
[1760314583427,7.30412882,198.41,198.39,5.04038223]
[1760314583617,8.01412882,198.4,198.33,12.60501088]
[1760314583816,7.30412882,198.38,198.36,10.87647521]
[1760314584320,8.01412882,198.37,198.29,5.04311866]
[1760314584519,5.04011411,198.41,198.24,7.30412882]
[1760314584520,7.30412882,198.31,198.24,7.30412882]
[1760314584833,0.71,198.36,198.23,7.30412882]
[1760314585020,0.71,198.36,198.25,10.87647521]
[1760314585219,0.71,198.36,198.25,7.30412882]
[1760314585427,7.30412882,198.35,198.29,10.87647521]
[1760314585641,7.30412882,198.35,198.31,10.87647521]
[1760314585836,7.30412882,198.32,198.24,10.87647521]
[1760314586135,7.30412882,198.29,198.23,7.30412882]
[1760314586314,7.30412882,198.28,198.21,7.30412882]
[1760314586645,7.30412882,198.26,198.19,7.30412882]
[1760314586940,0.66,198.32,198.22,7.30412882]
[1760314587139,7.30412882,198.29,198.22,7.30412882]
[1760314587439,7.30412882,198.28,198.22,7.30412882]
[1760314587647,0.66,198.35,198.26,10.87647521]
[1760314587927,7.30412882,198.32,198.26,10.87647521]
[1760314588510,7.30412882,198.31,198.26,10.87647521]
[1760314588821,7.30412882,198.28,198.26,10.87647521]
[1760314589217,7.96412882,198.3,198.26,10.87647521]
[1760314589440,7.30412882,198.32,198.26,10.87647521]
[1760314589728,7.30412882,198.31,198.22,0.67]
[1760314589906,7.30412882,198.28,198.19,28.53629659]
[1760314590111,7.30412882,198.27,198.22,10.87647521]
[1760314590511,7.30412882,198.27,198.21,10.87647521]
[1760314590712,7.30412882,198.22,198.14,0.67]
[1760314591019,7.30412882,198.21,198.14,7.97412882]
[1760314591214,7.30412882,198.23,198.17,7.30412882]
[1760314591423,7.30412882,198.23,198.18,10.87647521]
[1760314591832,12.60398285,198.35,198.17,10.87647521]
[1760314592034,7.30412882,198.22,198.17,15.92264768]
[1760314592424,7.30412882,198.23,198.17,15.92264768]
[1760314592945,7.30412882,198.28,198.22,10.87647521]
[1760314593115,7.96412882,198.31,198.24,18.18060403]
[1760314593731,7.30412882,198.32,198.26,18.18060403]
[1760314593938,7.30412882,198.32,198.27,17.65269581]
[1760314594259,7.30412882,198.34,198.28,10.87647521]
[1760314594463,7.30412882,198.36,198.3,10.87647521]
[1760314594823,0.66,198.38,198.3,10.87647521]
[1760314595047,7.30412882,198.33,198.28,10.87647521]
[1760314595238,0.66,198.37,198.28,10.87647521]
[1760314595239,7.30412882,198.32,198.28,10.87647521]
[1760314595441,7.30412882,198.29,198.28,10.87647521]
[1760314595653,7.30412882,198.3,198.28,10.87647521]
[1760314595830,7.30412882,198.3,198.29,15.91959387]
[1760314596029,20.8,198.41,198.24,12.61071035]
[1760314596253,7.30412882,198.29,198.25,15.9206114]
[1760314596447,7.30412882,198.3,198.25,15.9206114]
[1760314597049,7.30412882,198.27,198.25,15.9206114]
[1760314597257,7.96412882,198.26,198.23,5.04440186]
[1760314597560,7.30412882,198.24,198.22,10.87647521]
[1760314597859,7.30412882,198.25,198.23,5.0446451]
[1760314598157,7.30412882,198.24,198.23,15.92112031]
[1760314598359,7.30412882,198.24,198.21,12.61288532]
[1760314598360,7.96412882,198.24,198.18,12.6145144]
[1760314598543,7.30412882,198.25,198.19,28.53629659]
[1760314598851,0.66,198.33,198.25,10.87647521]
[1760314599049,7.96412882,198.33,198.27,10.87647521]
[1760314599247,7.30412882,198.32,198.27,10.87647521]
[1760314599551,7.30412882,198.32,198.25,7.30412882]
[1760314599854,7.30412882,198.32,198.23,10.87647521]
[1760314599855,0.66,198.34,198.29,10.87647521]
[1760314600038,7.30412882,198.35,198.29,10.87647521]
[1760314600346,7.30412882,198.38,198.31,7.30412882]
[1760314601048,0.66,198.41,198.31,7.30412882]
[1760314601249,7.30412882,198.38,198.32,17.64824525]
[1760314601434,7.30412882,198.41,198.35,7.30412882]
[1760314601630,7.30412882,198.38,198.33,10.87647521]
[1760314601837,7.30412882,198.4,198.35,10.87647521]
[1760314602056,7.30412882,198.41,198.35,10.87647521]
[1760314602255,0.66,198.44,198.35,7.30412882]
[1760314602456,7.30412882,198.45,198.38,18.18060403]
[1760314602629,0.66,198.48,198.4,10.87647521]
[1760314602949,7.30412882,198.45,198.4,10.87647521]
[1760314603272,7.30412882,198.43,198.37,10.87647521]
[1760314603442,7.30412882,198.41,198.38,5.04083072]
[1760314603754,7.30412882,198.4,198.38,5.04083072]
[1760314603955,0.66,198.44,198.39,10.87647521]
[1760314604161,5.03842428,198.48,198.39,10.87647521]
[1760314604162,0.67,198.43,198.39,10.87647521]
[1760314604341,7.30412882,198.4,198.37,10.87647521]
[1760314604543,7.30412882,198.38,198.37,10.87647521]
[1760314604741,7.30412882,198.38,198.36,5.04115503]
[1760314605051,7.30412882,198.37,198.36,15.91763024]
[1760314605257,7.30412882,198.37,198.29,12.60754108]
[1760314605464,7.30412882,198.33,198.26,0.7]
[1760314605633,0.67,198.37,198.27,10.87647521]
[1760314606457,5.04111413,198.37,198.27,10.87647521]
[1760314606664,7.30412882,198.28,198.2,17.65893036]
[1760314606873,7.30412882,198.25,198.2,17.65893036]
[1760314607036,7.30412882,198.25,198.21,0.7]
[1760314607355,7.30412882,198.22,198.16,7.30412882]
[1760314607533,7.30412882,198.22,198.16,8.00412882]
[1760314607735,7.30412882,198.22,198.16,0.7]
[1760314607934,7.30412882,198.18,198.11,0.7]
[1760314608160,7.30412882,198.18,198.11,8.00412882]
[1760314608461,7.30412882,198.17,198.1,7.30412882]
[1760314608631,7.30412882,198.16,198.1,7.30412882]
[1760314608837,7.30412882,198.16,198.08,0.7]
[1760314609137,7.30412882,198.15,198.08,8.00412882]
[1760314609333,7.30412882,198.12,198.06,42.91628798]
[1760314609729,0.67,198.17,198.06,50.2204168]
[1760314609954,7.30412882,198.18,198.12,7.30412882]
[1760314610150,7.30412882,198.19,198.13,18.18060403]
[1760314610350,7.30412882,198.19,198.13,10.87647521]
[1760314610562,7.30412882,198.17,198.1,7.30412882]
[1760314610861,7.30412882,198.17,198.11,10.87647521]
[1760314611153,7.30412882,198.17,198.11,7.30412882]
[1760314611333,7.30412882,198.17,198.13,10.87647521]
[1760314611528,7.30412882,198.15,198.13,10.87647521]
[1760314611742,7.30412882,198.14,198.12,5.04744599]
[1760314612066,7.30412882,198.13,198.12,15.9239212]
[1760314612242,7.30412882,198.13,198.1,5.04781114]
[1760314612436,7.30412882,198.11,197.98,0.9]
[1760314612642,7.30412882,198.09,198.02,7.30412882]
[1760314612845,7.30412882,198.1,198.03,7.30412882]
[1760314613047,7.30412882,198.08,198.01,8.00412882]
[1760314613250,7.30412882,198.05,198.0,12.6256619]
[1760314613565,7.30412882,198.04,198.01,10.87647521]
[1760314614349,7.30412882,198.04,198.02,5.04999495]
[1760314614566,0.67,198.08,198.02,5.04999495]
[1760314614862,7.30412882,198.04,198.02,5.04999495]
[1760314615171,7.30412882,198.03,198.02,15.92647016]
[1760314615741,7.30412882,198.04,198.02,15.92647016]
[1760314615955,7.98412882,198.03,197.99,12.62644963]
[1760314616158,7.30412882,198.02,197.99,12.62644963]
[1760314616356,7.30412882,198.01,198.0,10.87647521]
[1760314616873,19.99999999,198.16,198.01,15.92672519]
[1760314617068,7.30412882,198.05,198.01,15.92672519]
[1760314617363,7.30412882,198.06,198.01,15.92672519]
[1760314617568,0.68,198.1,198.03,7.30412882]
[1760314617737,7.30412882,198.08,198.02,10.87647521]
[1760314618557,7.30412882,198.08,198.04,10.87647521]
[1760314618558,7.30412882,198.05,198.04,10.87647521]
[1760314619146,7.30412882,198.06,198.04,10.87647521]
[1760314619445,7.30412882,198.07,198.04,10.87647521]
[1760314619650,7.97773623,198.07,198.04,10.87647521]
[1760314619844,5.57916859,198.07,198.04,10.87647521]
[1760314620052,4.89916859,198.09,198.04,10.87647521]
[1760314620351,4.89916859,198.08,198.04,10.87647521]
[1760314620547,0.68,198.11,198.05,17.67230497]
[1760314620748,4.89916859,198.12,198.06,10.87647521]
[1760314620947,19.99999999,198.28,198.06,10.87647521]
[1760314620948,0.68,198.15,198.06,10.87647521]
[1760314621175,0.68,198.15,198.08,10.87647521]
[1760314621176,4.89916859,198.14,198.08,10.87647521]
[1760314621560,4.89916859,198.14,198.06,10.87647521]